bitfinex/quotes_BTCUSD_20260125
["timestamp","ask_amount","ask_price","bid_price","bid_amount"]
[1769337280622,1.36765758,88578.0,88567.0,0.0001493]
[1769337281046,0.11160278,88577.0,88567.0,0.0001493]
[1769337282418,1.36765758,88583.0,88567.0,0.0001493]
[1769337282607,0.00112893,88582.0,88567.0,0.0001493]
[1769337283028,0.00112893,88582.0,88567.0,1.09577606]
[1769337283230,0.00112893,88582.0,88567.0,1.40336815]
[1769337284673,0.00112893,88582.0,88567.0,0.0001493]
[1769337284878,0.00112893,88585.0,88567.0,0.0001493]
[1769337285134,0.00112893,88585.0,88571.0,0.30759209]
[1769337285299,0.00112893,88585.0,88571.0,1.40321885]
[1769337287820,0.1049455,88585.0,88571.0,1.40321885]
[1769337288726,0.1049455,88585.0,88562.0,0.30759209]
[1769337288894,0.1049455,88585.0,88560.0,0.0002013]
[1769337288895,0.00112893,88585.0,88565.0,1.09562676]
[1769337289147,0.00112893,88585.0,88568.0,0.30759209]
[1769337289344,0.00112893,88585.0,88569.0,1.09562676]
[1769337289545,0.25965507,88590.0,88570.0,1.40321885]
[1769337289760,0.01128821,88588.0,88571.0,0.30759209]
[1769337290072,0.01128833,88587.0,88571.0,0.30759209]
[1769337290261,0.02251897,88589.0,88571.0,0.30759209]
[1769337290262,0.03380705,88589.0,88571.0,0.30759209]
[1769337290702,0.03855054,88590.0,88571.0,0.30759209]
[1769337290969,0.01128808,88589.0,88571.0,0.30759209]
[1769337291878,0.01128833,88587.0,88571.0,0.30759209]
[1769337292024,0.01128808,88589.0,88571.0,0.30759209]
[1769337292223,0.01128821,88588.0,88571.0,0.30759209]
[1769337295305,0.01128821,88588.0,88572.0,0.007796]
[1769337296212,0.10082611,88587.0,88572.0,0.007796]
[1769337296408,0.11211444,88587.0,88572.0,0.007796]
[1769337296823,0.10082611,88587.0,88572.0,0.007796]
[1769337298798,0.01128821,88588.0,88572.0,0.007796]
[1769337301368,1.06818836,88589.0,88572.0,0.007796]
[1769337301810,0.32204551,88588.0,88572.0,0.007796]
[1769337302043,1.06818861,88587.0,88572.0,0.007796]
[1769337302681,0.01128846,88586.0,88572.0,0.007796]
[1769337302892,1.06818861,88587.0,88572.0,0.007796]
[1769337303095,0.07326185,88585.0,88572.0,0.007796]
[1769337303293,0.01128846,88586.0,88572.0,0.007796]
[1769337303817,0.01128859,88585.0,88572.0,0.007796]
[1769337304045,1.08727772,88583.0,88570.0,0.00047374]
[1769337304244,0.01128923,88580.0,88570.0,0.00047374]
[1769337304457,0.00677353,88579.0,88570.0,0.00047374]
[1769337304887,0.01128884,88583.0,88570.0,0.00047374]
[1769337305314,0.01128897,88582.0,88570.0,0.00047374]
[1769337305526,1.07598888,88585.0,88570.0,0.00047374]
[1769337305527,0.01128872,88584.0,88570.0,0.00047374]
[1769337307217,0.0208854,88609.0,88571.0,0.33150145]
[1769337307454,0.11305148,88587.0,88574.0,1.08650757]
[1769337307700,0.17352,88597.0,88577.0,0.33150145]
[1769337307908,0.11304787,88596.0,88579.0,0.33150145]
[1769337308182,0.01128731,88595.0,88579.0,0.33150145]
[1769337308387,0.01128757,88593.0,88579.0,0.33150145]
[1769337308592,0.01128744,88594.0,88579.0,0.33150145]
[1769337308593,0.11304787,88594.0,88579.0,0.33150145]
[1769337308806,0.11304787,88593.0,88579.0,0.33150145]
[1769337309067,0.11304787,88592.0,88579.0,0.33150145]
[1769337309276,0.11314537,88591.0,88579.0,0.33150145]
[1769337309501,0.11304787,88590.0,88579.0,0.33150145]
[1769337309697,9.75e-05,88591.0,88579.0,0.33150145]
[1769337309921,9.75e-05,88591.0,88581.0,0.30863168]
[1769337310059,9.75e-05,88591.0,88582.0,0.33150145]
[1769337310267,9.75e-05,88591.0,88582.0,0.2145589]
[1769337310469,9.75e-05,88591.0,88582.0,0.15803273]
[1769337311298,0.11302778,88596.0,88573.0,0.17352]
[1769337311299,0.11302778,88596.0,88583.0,1.08650757]
[1769337311510,0.01143608,88600.0,88586.0,0.33150145]
[1769337311511,0.01128693,88598.0,88586.0,0.33150145]
[1769337311772,0.0112868,88599.0,88586.0,0.33150145]
[1769337312003,0.0112868,88599.0,88585.0,1.08650757]
[1769337312199,0.01128693,88598.0,88581.0,0.33150145]
[1769337312402,0.11160278,88598.0,88581.0,0.33150145]
[1769337312998,0.11160278,88598.0,88581.0,1.41800902]
[1769337313291,0.25578642,88602.0,88573.0,0.19093431]
[1769337313292,0.2445,88602.0,88578.0,0.0453494]
[1769337313575,0.2445,88602.0,88579.0,0.00682328]
[1769337314085,0.2445,88602.0,88583.0,0.32229401]
[1769337314273,0.2445,88602.0,88586.0,1.08882779]
[1769337314475,0.2445,88602.0,88589.0,0.32229401]
[1769337314676,0.2445,88602.0,88590.0,1.4111218]
[1769337314677,0.28025077,88602.0,88590.0,1.4111218]
[1769337315056,0.32635588,88600.0,88584.0,0.17348]
[1769337315262,0.32635588,88598.0,88584.0,0.17348]
[1769337315473,1.08413057,88599.0,88584.0,0.17348]
[1769337315673,0.10860088,88598.0,88584.0,0.17348]
[1769337315950,0.28025077,88602.0,88584.0,0.49577401]
[1769337315951,0.01128655,88601.0,88584.0,0.49577401]
[1769337316093,0.28025077,88602.0,88584.0,0.17348]
[1769337316276,0.03575077,88602.0,88585.0,1.4111218]
[1769337316475,0.01128604,88605.0,88586.0,0.32229401]
[1769337316716,0.01128604,88605.0,88588.0,1.4111218]
[1769337318334,0.32635588,88605.0,88588.0,0.32229401]
[1769337318529,1.08413057,88602.0,88584.0,0.17348]
[1769337318729,1.08413057,88600.0,88584.0,0.17348]
[1769337318931,1.09541725,88600.0,88584.0,0.17348]
[1769337319154,0.0112868,88599.0,88584.0,0.17348]
[1769337319341,0.0112868,88599.0,88581.0,0.17348]
[1769337319342,1.08413057,88596.0,88581.0,0.17348]
[1769337319525,0.11160278,88595.0,88581.0,0.17348]
[1769337319735,0.11160278,88595.0,88580.0,0.49577401]
[1769337321859,0.01128744,88594.0,88580.0,0.49577401]
[1769337322732,1.08413057,88594.0,88580.0,0.17348]
[1769337322964,0.11160278,88593.0,88580.0,0.17348]
[1769337324678,0.01128706,88597.0,88580.0,0.17348]
[1769337324861,0.01128719,88596.0,88580.0,0.17348]
[1769337325193,1.09541788,88595.0,88580.0,0.17348]
[1769337325390,1.42177376,88595.0,88580.0,0.17348]
[1769337325980,1.41048645,88595.0,88580.0,0.17348]
[1769337326434,1.50268545,88595.0,88580.0,0.17348]
[1769337326969,1.51397276,88595.0,88580.0,0.17348]
[1769337327594,1.08413057,88594.0,88580.0,0.17348]
[1769337331297,0.32635588,88595.0,88580.0,0.17348]
[1769337331475,0.32635588,88595.0,88580.0,0.18319587]
[1769337332062,0.32635588,88595.0,88580.0,0.17348]
[1769337333049,0.06771742,88604.0,88580.0,0.17348]
[1769337333219,0.04106263,88603.0,88582.0,1.15864556]
[1769337333543,0.04106263,88603.0,88584.0,1.15864556]
[1769337333704,0.01128579,88607.0,88586.0,1.15864556]
[1769337333903,0.01128579,88607.0,88588.0,1.15864556]
[1769337333904,0.133145,88607.0,88588.0,1.15864556]
[1769337334106,0.01128617,88604.0,88589.0,0.01027648]
[1769337334377,0.01128642,88602.0,88589.0,0.01027648]
[1769337334587,1.1629936,88603.0,88583.0,1.15864556]
[1769337334781,0.01128617,88604.0,88581.0,0.332961]
[1769337334782,0.3250301,88602.0,88581.0,0.332961]
[1769337334948,1.1629936,88599.0,88580.0,1.33212556]
[1769337335143,1.1629936,88597.0,88580.0,1.33212556]
[1769337335348,1.4880237,88597.0,88580.0,1.33212556]
[1769337338191,1.4880237,88597.0,88581.0,0.00764146]
[1769337339009,1.1629936,88606.0,88583.0,0.332961]
[1769337339292,0.01143493,88609.0,88588.0,1.15864556]
[1769337339293,0.0001494,88609.0,88588.0,1.15864556]
[1769337339555,0.0001494,88609.0,88580.0,0.46603799]
[1769337339556,1.17427837,88615.0,88591.0,0.332961]
[1769337339557,0.05642496,88614.0,88591.0,0.332961]
[1769337339700,0.01128515,88612.0,88593.0,1.49160656]
[1769337340232,1.49930885,88612.0,88593.0,1.49160656]
[1769337340602,1.4880237,88612.0,88593.0,1.49160656]
[1769337343452,1.4880237,88612.0,88594.0,0.00112874]
[1769337344164,0.0112854,88610.0,88594.0,0.00112874]
[1769337344320,0.01128553,88609.0,88594.0,0.00112874]
[1769337344744,0.01128579,88607.0,88594.0,0.00112874]
[1769337344924,0.01128566,88608.0,88594.0,0.00112874]
[1769337345764,0.01128553,88609.0,88594.0,0.00112874]
[1769337346535,0.01128566,88608.0,88594.0,0.00112874]
[1769337346970,0.06771111,88612.0,88594.0,0.00112874]
[1769337347259,1.61224729,88611.0,88594.0,0.00112874]
[1769337347436,0.11293831,88610.0,88594.0,0.00112874]
[1769337348297,0.17886171,88610.0,88594.0,0.00112874]
[1769337348486,0.0659234,88610.0,88594.0,0.00112874]
[1769337349224,0.3250301,88607.0,88593.0,0.17348]
[1769337349391,1.49930949,88607.0,88593.0,0.17348]
[1769337350361,1.4880237,88607.0,88593.0,0.17348]
[1769337351113,1.54605355,88607.0,88593.0,0.17348]
[1769337351710,0.3250301,88605.0,88593.0,0.17348]
[1769337351970,0.05802985,88607.0,88587.0,0.3331104]
[1769337351971,1.1629936,88604.0,88587.0,0.3331104]
[1769337352145,0.3250301,88602.0,88590.0,0.17348]
[1769337352471,1.4880237,88602.0,88590.0,0.17348]
[1769337352910,1.1629936,88599.0,88588.0,0.17348]
[1769337353444,1.1742804,88599.0,88588.0,0.17348]
[1769337353658,0.11160278,88598.0,88588.0,0.17348]
[1769337354072,1.1629936,88599.0,88588.0,0.17348]
[1769337356495,0.3250301,88600.0,88588.0,0.17348]
[1769337362215,0.33631678,88600.0,88588.0,0.17348]
[1769337362442,0.22571694,88607.0,88570.0,0.29288877]
[1769337362443,1.1629936,88591.0,88574.0,0.1675424]
[1769337362613,1.1629936,88591.0,88574.0,0.16741279]
[1769337362614,0.3250301,88590.0,88574.0,0.16741279]
[1769337362830,0.3250301,88590.0,88575.0,1.15864556]
[1769337363367,1.4136907,88590.0,88574.0,0.16741279]
[1769337363581,0.31869179,88588.0,88571.0,0.17348]
[1769337363808,0.32998,88588.0,88571.0,0.17348]
[1769337364057,0.31869179,88588.0,88571.0,0.17348]
[1769337364402,0.32998,88588.0,88571.0,0.17348]
[1769337364518,0.04088576,88587.0,88571.0,0.17348]
[1769337364722,0.01128846,88586.0,88571.0,0.17348]
[1769337365350,1.0886606,88585.0,88571.0,0.17348]
[1769337365554,0.01128859,88585.0,88571.0,0.17348]
[1769337365994,0.01128897,88582.0,88571.0,0.17348]
[1769337366213,0.31869179,88581.0,88571.0,0.17348]
[1769337366413,0.36262067,88581.0,88571.0,0.17348]
[1769337366839,0.35133157,88581.0,88571.0,0.17348]
[1769337371541,0.31869179,88581.0,88571.0,0.17348]
[1769337372583,1.40735239,88587.0,88571.0,0.17348]
[1769337372853,1.0886606,88585.0,88571.0,0.17348]
[1769337373073,1.40735239,88585.0,88571.0,0.17348]
[1769337373618,1.43161242,88585.0,88571.0,0.17348]
[1769337374067,1.43161242,88585.0,88572.0,0.00875072]
[1769337375980,1.08472204,88584.0,88572.0,0.00875072]
[1769337378976,0.01128821,88588.0,88572.0,0.00875072]
[1769337379109,0.01128808,88589.0,88572.0,1.15546194]
[1769337379306,1.09601012,88589.0,88572.0,1.14671122]
[1769337379758,1.08472204,88588.0,88572.0,1.14671122]
[1769337379966,1.41213262,88588.0,88572.0,1.14671122]
[1769337381559,0.11160278,88587.0,88572.0,1.14671122]
[1769337381960,1.08472204,88587.0,88571.0,0.50931307]
[1769337382162,1.08472204,88587.0,88572.0,0.00767924]
[1769337382622,1.09601037,88587.0,88572.0,0.00767924]
[1769337382824,1.42342095,88587.0,88572.0,0.00767924]
[1769337383033,0.01128846,88586.0,88572.0,0.00767924]
[1769337383878,0.01128846,88586.0,88571.0,0.50931307]
[1769337384102,0.01128872,88584.0,88571.0,0.50931307]
[1769337384304,0.01128872,88584.0,88571.0,0.17348]
[1769337384506,0.32741058,88582.0,88571.0,0.17348]
[1769337384752,1.08472204,88581.0,88571.0,0.17348]
[1769337394350,0.11160278,88584.0,88571.0,0.17348]
[1769337394594,1.45111947,88588.0,88572.0,0.00723608]
[1769337394765,1.09755119,88587.0,88572.0,0.00723608]
[1769337396009,0.90354461,88587.0,88572.0,0.00723608]
[1769337397499,0.91483294,88587.0,88572.0,0.00723608]
[1769337399393,0.34242947,88600.0,88572.0,0.00723608]
[1769337399594,0.11306143,88599.0,88588.0,1.14003766]
[1769337399736,0.0001494,88600.0,88588.0,1.14003766]
[1769337400176,0.01128617,88604.0,88588.0,1.14003766]
[1769337400370,0.104769,88603.0,88588.0,1.14003766]
[1769337400575,0.01128617,88604.0,88588.0,1.14003766]
[1769337401153,0.01128655,88601.0,88588.0,1.14003766]
[1769337401305,0.112519,88600.0,88587.0,0.31797466]
[1769337402171,0.472704,88601.0,88582.0,0.31797466]
[1769337402377,0.01128744,88594.0,88582.0,0.31797466]
[1769337402818,0.0112877,88592.0,88578.0,0.0001494]
[1769337403028,1.10883889,88592.0,88578.0,0.0001494]
[1769337403478,1.01942987,88592.0,88578.0,0.0001494]
[1769337403616,1.01942987,88592.0,88578.0,0.1736294]
[1769337404233,1.01942987,88592.0,88579.0,0.00738786]
[1769337404886,0.01128795,88590.0,88578.0,0.0001494]
[1769337405115,0.01128782,88591.0,88578.0,0.0001494]
[1769337405454,0.01128795,88590.0,88578.0,0.0001494]
[1769337405683,0.01128872,88584.0,88578.0,0.0001494]
[1769337405880,1.0429409,88582.0,88578.0,0.0001494]
[1769337406327,1.0429409,88581.0,88578.0,0.0001494]
[1769337406794,0.34228007,88582.0,88578.0,0.0001494]
[1769337407493,1.0429409,88580.0,88578.0,0.0001494]
[1769337407734,1.38522097,88580.0,88578.0,0.0001494]
[1769337408075,1.0429409,88580.0,88578.0,0.0001494]
[1769337408277,0.01228897,88582.0,88578.0,0.0001494]
[1769337408479,1.38188163,88579.0,88578.0,0.0001494]
[1769337408891,0.001,88582.0,88578.0,0.0001494]
[1769337409966,0.01128872,88584.0,88578.0,0.0001494]
[1769337410432,0.001,88580.0,88578.0,0.0001494]
[1769337410819,0.01128872,88584.0,88578.0,0.0001494]
[1769337411199,0.01128859,88585.0,88578.0,0.0001494]
[1769337411607,0.01128872,88584.0,88578.0,0.0001494]
[1769337411982,0.04675185,88584.0,88578.0,0.0001494]
[1769337412952,0.04775185,88584.0,88578.0,0.0001494]
[1769337413153,0.01228872,88584.0,88578.0,0.0001494]
[1769337413765,0.001,88584.0,88578.0,0.0001494]
[1769337414171,0.01228872,88584.0,88578.0,0.0001494]
[1769337414620,1.03963495,88581.0,88578.0,0.0001494]
[1769337415888,1.44965003,88581.0,88578.0,0.0001494]
[1769337416294,1.38191502,88579.0,88578.0,0.0001494]
[1769337416719,1.4383618,88579.0,88578.0,0.0001494]
[1769337417121,1.38191502,88579.0,88578.0,0.0001494]
[1769337417525,1.47143907,88579.0,88578.0,0.0001494]
[1769337418220,1.46399113,88579.0,88578.0,0.0001494]
[1769337418537,0.43180412,88579.0,88578.0,0.0001494]
[1769337418840,1.37454156,88584.0,88578.0,0.0001494]
[1769337419210,0.001,88579.0,88578.0,0.0001494]
[1769337419507,1.37454156,88584.0,88578.0,0.0001494]
[1769337419915,0.001,88579.0,88578.0,0.0001494]
[1769337420316,0.01128884,88583.0,88578.0,0.0001494]
[1769337420510,0.34228007,88581.0,88578.0,0.0001494]
[1769337420770,1.37454156,88581.0,88578.0,0.0001494]
[1769337421577,1.48614434,88581.0,88578.0,0.0001494]
[1769337421752,1.37454156,88581.0,88578.0,0.0001494]
[1769337422354,0.001,88584.0,88578.0,0.0001494]
[1769337422589,1.03226149,88589.0,88578.0,0.0001494]
[1769337422590,0.342676,88589.0,88578.0,0.0001494]
[1769337422830,0.305139,88590.0,88578.0,0.0001494]
[1769337423023,0.104659,88594.0,88582.0,0.32888377]
[1769337423231,0.104659,88594.0,88578.0,0.0001494]
[1769337423232,0.129859,88595.0,88584.0,1.44370645]
[1769337423442,0.118596,88594.0,88584.0,1.43038753]
[1769337423644,0.01128719,88596.0,88584.0,1.4251144]
[1769337423812,0.01128731,88595.0,88584.0,1.41744928]
[1769337424132,0.01128731,88595.0,88584.0,1.4076034]
[1769337424133,0.11294505,88595.0,88584.0,1.4076034]
[1769337424335,0.11294505,88594.0,88584.0,1.4076034]
[1769337424513,0.001,88595.0,88584.0,1.40294921]
[1769337425063,0.001,88595.0,88584.0,1.40250458]
[1769337425216,0.001,88595.0,88584.0,1.39784668]
[1769337425419,0.001,88595.0,88584.0,1.39724644]
[1769337425620,0.11294242,88596.0,88584.0,1.3289772]
[1769337425939,0.11294242,88595.0,88584.0,1.3289772]
[1769337426118,0.05191294,88596.0,88584.0,1.28175912]
[1769337426521,0.05191294,88596.0,88586.0,1.12369876]
[1769337426727,0.08580058,88596.0,88586.0,1.45258253]
[1769337427111,0.09708777,88596.0,88586.0,1.45258253]
[1769337427513,0.08580058,88596.0,88586.0,1.45258253]
[1769337427732,0.03388764,88596.0,88586.0,1.45258253]
[1769337427931,0.01128693,88598.0,88586.0,1.45258253]
[1769337428109,0.04517303,88598.0,88586.0,1.45207138]
[1769337428317,0.11294523,88597.0,88586.0,1.45207138]
[1769337428945,0.01128719,88596.0,88586.0,1.45207138]
[1769337429369,0.141768,88596.0,88581.0,1.12369876]
[1769337429535,0.01128744,88594.0,88581.0,1.12369876]
[1769337429843,0.037034,88596.0,88581.0,1.12369876]
[1769337429844,0.04832119,88596.0,88582.0,1.12369876]
[1769337430438,0.01128731,88595.0,88582.0,1.12369876]
[1769337431488,0.05675423,88595.0,88578.0,0.0001494]
[1769337431690,0.40647961,88595.0,88578.0,0.0001494]
[1769337431850,0.40647961,88595.0,88580.0,1.12369876]
[1769337432060,0.01128744,88594.0,88580.0,1.12369876]
[1769337432482,0.01128782,88591.0,88580.0,1.12369876]
[1769337432888,0.0112877,88592.0,88580.0,1.12369876]
[1769337433477,0.0112877,88592.0,88581.0,0.00730377]
[1769337435724,0.0112877,88592.0,88580.0,1.12369876]
[1769337436123,0.0112877,88592.0,88581.0,0.0073585]
[1769337436569,0.01128782,88591.0,88581.0,0.0073585]
[1769337436768,0.12430856,88591.0,88581.0,0.0073585]
[1769337437466,0.11302074,88591.0,88581.0,0.0073585]
[1769337437669,0.0112877,88592.0,88581.0,0.0073585]
[1769337437883,0.10527771,88592.0,88581.0,0.0073585]
[1769337438033,0.11301985,88591.0,88581.0,0.0073585]
[1769337438246,0.11301985,88591.0,88578.0,0.0001494]
[1769337438660,0.12430767,88591.0,88578.0,0.0001494]
[1769337439266,0.11301985,88591.0,88578.0,1.15152638]
[1769337439492,0.21193594,88591.0,88578.0,1.15152638]
[1769337439664,0.09891609,88591.0,88578.0,1.15152638]
[1769337440305,0.10527771,88592.0,88578.0,1.15152638]
[1769337440533,0.11302175,88591.0,88578.0,1.15152638]
[1769337440741,0.01128757,88593.0,88579.0,0.00736838]
[1769337441157,0.0112877,88592.0,88579.0,0.00736838]
[1769337441580,0.11302175,88593.0,88579.0,0.00724284]
[1769337441799,0.11302175,88592.0,88579.0,0.00724284]
[1769337441999,0.11302175,88591.0,88579.0,0.00724284]
[1769337442204,0.01128744,88594.0,88579.0,0.00724284]
[1769337442410,0.12431299,88594.0,88579.0,0.00724284]
[1769337443542,0.01128757,88593.0,88579.0,0.00724284]
[1769337443743,0.11302555,88593.0,88579.0,0.00724284]
[1769337443944,0.11302555,88592.0,88579.0,0.00724284]
[1769337444156,0.11302555,88591.0,88579.0,0.00724284]
[1769337444335,0.11302555,88594.0,88579.0,0.00724284]
[1769337444502,0.11303226,88593.0,88579.0,0.00724284]
[1769337444703,0.11303226,88592.0,88579.0,0.00724284]
[1769337444903,0.11303226,88591.0,88579.0,0.00724284]
[1769337445103,0.11303938,88590.0,88579.0,0.00724284]
[1769337445349,0.40647961,88595.0,88579.0,0.00724284]
[1769337445591,0.11304019,88594.0,88579.0,0.00724284]
[1769337445802,0.16340145,88594.0,88579.0,0.00724284]
[1769337445959,0.11304019,88593.0,88579.0,0.00724284]
[1769337447081,0.11304019,88593.0,88578.0,1.15152638]
[1769337448030,0.34515905,88592.0,88578.0,0.0001494]
[1769337448247,0.01128846,88586.0,88578.0,0.0001494]
[1769337448456,0.01128859,88585.0,88578.0,0.0001494]
[1769337448612,0.01128846,88586.0,88578.0,0.0001494]
[1769337449037,0.01128859,88585.0,88578.0,0.0001494]
[1769337449215,0.35531856,88584.0,88579.0,0.17348]
[1769337449620,0.01015951,88584.0,88579.0,0.17348]
[1769337450792,0.02244823,88584.0,88579.0,0.1731103]
[1769337450952,0.01228872,88584.0,88579.0,0.1731103]
[1769337451154,0.001,88584.0,88579.0,0.1731103]
[1769337451800,0.001,88584.0,88579.0,0.17278004]
[1769337451937,1.07543736,88588.0,88579.0,0.17278004]
[1769337452142,0.34515905,88587.0,88579.0,0.17278004]
[1769337452323,0.11160278,88586.0,88579.0,0.17278004]
[1769337453331,0.34515905,88587.0,88579.0,0.17278004]
[1769337454082,0.16589934,88587.0,88579.0,0.17278004]
[1769337454327,0.01128782,88591.0,88579.0,0.17278004]
[1769337456117,0.11160278,88592.0,88578.0,0.0001494]
[1769337456318,1.08710767,88590.0,88578.0,0.0001494]
[1769337457089,0.01128859,88585.0,88578.0,0.0001494]
[1769337457288,0.01128846,88586.0,88578.0,0.0001494]
[1769337458603,1.08710767,88590.0,88578.0,0.0001494]
[1769337458952,0.33652891,88591.0,88578.0,0.0001494]
[1769337459156,0.34781673,88591.0,88578.0,0.0001494]
[1769337459375,0.11160278,88590.0,88579.0,1.06464295]
[1769337459556,0.01128757,88593.0,88581.0,1.06464295]
[1769337459765,0.0112877,88592.0,88581.0,1.06464295]
[1769337460108,0.01128744,88594.0,88581.0,1.06464295]
[1769337460307,0.1243269,88594.0,88581.0,1.06464295]
[1769337460740,0.110227,88593.0,88581.0,1.06464295]
[1769337460876,0.10774,88593.0,88581.0,1.06464295]
[1769337461079,0.15177,88593.0,88581.0,1.06464295]
[1769337461282,0.106354,88593.0,88581.0,1.06464295]
[1769337461480,0.106354,88593.0,88581.0,1.06447787]
[1769337462354,0.01128782,88591.0,88581.0,1.06447787]
[1769337462623,0.01128795,88590.0,88581.0,1.06447787]
[1769337463427,0.01128808,88589.0,88581.0,0.99620519]
[1769337463992,0.01128808,88589.0,88581.0,0.99589299]
[1769337464193,0.01128808,88589.0,88581.0,0.99079624]
[1769337464393,0.01128808,88589.0,88581.0,0.91545856]
[1769337464598,0.01128808,88589.0,88580.0,0.16258587]
[1769337464795,0.01128808,88589.0,88578.0,0.0001494]
[1769337464796,0.01128808,88589.0,88578.0,0.00894075]
[1769337466342,0.01128808,88589.0,88578.0,0.00877567]
[1769337466502,0.01128808,88589.0,88577.0,0.00880137]
[1769337467882,0.01128846,88586.0,88577.0,0.00880137]
[1769337469150,0.01128833,88587.0,88577.0,0.00880137]
[1769337469350,0.01128846,88586.0,88577.0,0.00880137]
[1769337469986,0.04708243,88586.0,88577.0,0.00880137]
[1769337471006,0.01128859,88585.0,88577.0,0.00880137]
[1769337471148,0.01157815,88585.0,88571.0,1.06464295]
[1769337471500,0.01128872,88584.0,88572.0,1.07313175]
[1769337471720,0.01128872,88584.0,88572.0,1.06464295]
[1769337472009,0.01157815,88585.0,88573.0,0.00849659]
[1769337472349,0.00028956,88585.0,88573.0,0.00849659]
[1769337472602,0.00028956,88585.0,88573.0,1.07313954]
[1769337472749,0.00028956,88585.0,88573.0,1.06464295]
[1769337472950,0.00028956,88585.0,88574.0,0.00850778]
[1769337473213,0.01157815,88594.0,88574.0,0.00850778]
[1769337473423,0.159556,88591.0,88574.0,1.06464295]
[1769337473622,0.159556,88591.0,88575.0,0.00851872]
[1769337474180,0.09897082,88590.0,88575.0,0.00851872]
[1769337474606,0.09897082,88590.0,88575.0,1.06464295]
[1769337474787,0.11304051,88589.0,88576.0,0.00853368]
[1769337475414,0.00028956,88588.0,88576.0,0.00853368]
[1769337475591,0.11189234,88588.0,88576.0,0.00853368]
[1769337477755,0.11205742,88588.0,88576.0,0.0083686]
[1769337479971,0.11205742,88588.0,88573.0,0.00827706]
[1769337480751,0.00045464,88588.0,88573.0,0.00827706]
[1769337480956,0.11350443,88589.0,88573.0,0.00827706]
[1769337481346,0.11350443,88589.0,88573.0,1.07292001]
[1769337481562,0.11350443,88589.0,88573.0,1.06464295]
[1769337481975,0.11350443,88589.0,88573.0,1.06447787]
[1769337482217,0.11350443,88589.0,88573.0,1.06431279]
[1769337482423,0.00045464,88589.0,88573.0,1.38826911]
[1769337482627,0.00045464,88589.0,88574.0,0.33244695]
[1769337482833,0.1130528,88591.0,88575.0,1.06464295]
[1769337483043,0.1130528,88591.0,88576.0,1.08558747]
[1769337483280,0.1130528,88591.0,88576.0,1.07708951]
[1769337483496,0.12434062,88591.0,88577.0,0.00850575]
[1769337483677,0.32952372,88586.0,88570.0,0.00047374]
[1769337483882,0.32952372,88586.0,88570.0,0.01124529]
[1769337483883,1.4119498,88586.0,88570.0,0.01124529]
[1769337484088,1.08242608,88585.0,88570.0,0.01124529]
[1769337484294,0.0338897,88591.0,88572.0,0.32646241]
[1769337484523,0.11305699,88590.0,88575.0,1.07708951]
[1769337484732,0.11305699,88590.0,88576.0,0.01078211]
[1769337485152,0.12434507,88589.0,88576.0,0.01078211]
[1769337485544,0.01128821,88588.0,88576.0,0.01078211]
[1769337485699,0.12479984,88588.0,88576.0,0.01078211]
[1769337485961,0.12479984,88588.0,88570.0,0.00047374]
[1769337485962,1.29329653,88588.0,88570.0,0.00047374]
[1769337486167,1.08242608,88587.0,88570.0,0.00047374]
[1769337486445,1.08242608,88585.0,88570.0,0.00047374]
[1769337486659,0.32952372,88582.0,88570.0,0.00047374]
[1769337486869,0.32952372,88580.0,88570.0,0.00047374]
[1769337487081,0.01128948,88578.0,88570.0,0.00047374]
[1769337487491,0.32952372,88580.0,88570.0,0.00047374]
[1769337487492,0.34081295,88580.0,88570.0,0.00047374]
[1769337487691,0.12289213,88579.0,88570.0,0.00047374]
[1769337487896,0.11160278,88579.0,88570.0,0.00047374]
[1769337488831,0.12289213,88579.0,88570.0,0.00047374]
[1769337490514,0.12289213,88579.0,88570.0,0.00030866]
[1769337490724,0.12289213,88579.0,88570.0,0.00014358]
[1769337490931,0.11160278,88578.0,88570.0,0.00014358]
[1769337491366,0.01128973,88576.0,88570.0,0.00014358]
[1769337491543,0.11160278,88578.0,88570.0,0.00014358]
[1769337491544,0.01128961,88577.0,88570.0,0.00014358]
[1769337491752,0.01128973,88576.0,88570.0,0.00014358]
[1769337492182,0.11160278,88578.0,88570.0,0.00014358]
[1769337492394,0.02076664,88576.0,88570.0,0.00014358]
[1769337493151,0.01128948,88578.0,88570.0,0.00014358]
[1769337493608,0.01128961,88577.0,88570.0,0.00014358]
[1769337494027,0.01128948,88578.0,88570.0,0.00014358]
[1769337494171,0.01128961,88577.0,88570.0,0.00014358]
[1769337495397,0.01128948,88578.0,88570.0,0.00014358]
[1769337495742,0.12289239,88577.0,88570.0,0.00014358]
[1769337496328,0.12334703,88577.0,88570.0,0.00014358]
[1769337496530,0.11205742,88577.0,88570.0,0.00014358]
[1769337496693,0.12334703,88577.0,88570.0,0.00014358]
[1769337496895,0.01128986,88575.0,88570.0,0.00014358]
[1769337497141,0.11160278,88574.0,88570.0,0.00014358]
[1769337497787,0.11160278,88574.0,88562.0,1.07708951]
[1769337497913,0.11207622,88574.0,88562.0,1.07708951]
[1769337498111,0.00047344,88574.0,88562.0,1.07692443]
[1769337499510,1.43922339,88580.0,88562.0,1.07692443]
[1769337499714,0.22578316,88581.0,88562.0,0.00047344]
[1769337499979,1.09637682,88578.0,88562.0,0.00047344]
[1769337500168,0.39929514,88577.0,88562.0,0.00047344]
[1769337500361,0.01128999,88574.0,88562.0,0.00047344]
[1769337500816,0.01128986,88575.0,88562.0,0.00047344]
[1769337501512,0.34284657,88577.0,88562.0,0.00047344]
[1769337502694,0.03533561,88576.0,88562.0,0.00047344]
[1769337504454,0.34284657,88577.0,88562.0,0.00047344]
[1769337505647,0.01128986,88575.0,88562.0,0.00047344]
[1769337507015,0.01128999,88574.0,88562.0,0.00047344]
[1769337507442,0.06774012,88574.0,88562.0,0.00047344]
[1769337507643,0.01129024,88572.0,88562.0,0.00047344]
[1769337508251,0.01129012,88573.0,88562.0,0.00047344]
[1769337508451,0.01129063,88569.0,88562.0,0.00047344]
[1769337508672,0.01129037,88571.0,88562.0,0.00047344]
[1769337508853,0.01129024,88572.0,88562.0,0.00047344]
[1769337509275,1.45839045,88573.0,88562.0,0.00047344]
[1769337509627,1.28223995,88573.0,88562.0,0.00047344]
[1769337513509,0.34284657,88573.0,88562.0,0.00047344]
[1769337514498,0.01128973,88576.0,88562.0,0.00047344]
[1769337515326,0.01128986,88575.0,88562.0,0.00047344]
[1769337515730,0.01128999,88574.0,88562.0,0.00047344]
[1769337516262,0.01128986,88575.0,88562.0,0.00047344]
[1769337516505,0.01128999,88574.0,88562.0,0.00047344]
[1769337516711,0.01128986,88575.0,88562.0,0.00047344]
[1769337519039,0.01128999,88574.0,88562.0,0.00047344]
[1769337520013,0.01128986,88575.0,88562.0,0.00047344]
[1769337520628,0.01128973,88576.0,88562.0,0.00047344]
[1769337520807,0.01128986,88575.0,88562.0,0.00047344]
[1769337521375,0.12289251,88576.0,88562.0,0.00047344]
[1769337523442,0.01128973,88576.0,88562.0,0.00047344]
[1769337523626,0.01128961,88577.0,88562.0,0.00047344]